bitfinex-derivatives/quotes_SOLF0:USTF0_20250603
["timestamp","ask_amount","ask_price","bid_price","bid_amount"]
[1748930563086,6.2657,159.51,159.5,0.04000059]
[1748930563886,12.77675869,159.51,159.5,0.04000059]
[1748930564191,6.2657,159.51,159.5,0.04000059]
[1748930564383,8.61494697,159.54,159.5,0.04000059]
[1748930565288,6.2652,159.53,159.5,6.30610059]
[1748930565886,6.55144697,159.54,159.5,0.04000059]
[1748930566287,6.55144697,159.54,159.5,5.86999936]
[1748930566486,6.55144697,159.54,159.5,0.04000059]
[1748930566991,6.55144697,159.54,159.5,5.86999936]
[1748930567381,0.04038828,159.54,159.5,5.86999936]
[1748930568084,0.04038828,159.54,159.51,5.82999877]
[1748930568587,0.04038828,159.54,159.51,5.82346048]
[1748930568891,0.04038828,159.54,159.53,6.2649]
[1748930570792,0.04038828,159.54,159.52,6.2652]
[1748930572693,6.30498828,159.54,159.51,12.08906048]
[1748930574589,6.30498828,159.54,159.51,5.82346048]
[1748930575689,6.55144697,159.54,159.51,5.82346048]
[1748930575893,6.55144697,159.54,159.5,5.86346107]
[1748930576096,6.2657,159.51,159.5,0.04000059]
[1748930576393,6.2657,159.51,159.5,5.86670705]
[1748930576991,6.2657,159.51,159.5,0.04000059]
[1748930596910,6.2657,159.51,159.5,0.00894407]
[1748930597609,38.0457,159.51,159.5,0.00894407]
[1748930605213,42.21250705,159.51,159.5,0.00894407]
[1748930609415,6.2677,159.46,159.45,5.83374924]
[1748930609618,10.43450705,159.46,159.45,5.83259843]
[1748930610015,6.2677,159.46,159.45,5.83259843]
[1748930610218,10.43450705,159.46,159.45,5.83259843]
[1748930611914,10.43450705,159.46,159.44,0.0399647]
[1748930611915,6.2681,159.45,159.44,5.87256313]
[1748930613320,6.2681,159.45,159.44,5.87178926]
[1748930613720,6.2681,159.45,159.44,0.0399647]
[1748930613721,10.43490705,159.45,159.44,0.0399647]
[1748930625826,6.2681,159.45,159.44,0.0399647]
[1748930626126,10.43460705,159.46,159.44,0.0399647]
[1748930626424,0.04540439,159.47,159.44,4.20677175]
[1748930626633,0.04540439,159.47,159.45,6.2681]
[1748930626932,6.31280439,159.47,159.44,4.20677175]
[1748930627232,6.31280439,159.47,159.44,6.3081647]
[1748930629332,6.2677,159.46,159.44,6.3081647]
[1748930630133,6.31280439,159.47,159.44,6.3081647]
[1748930631432,6.2678,159.46,159.44,6.3081647]
[1748930632735,6.31280439,159.47,159.44,6.3081647]
[1748930634438,6.31280439,159.47,159.45,6.2681]
[1748930635834,6.31280439,159.47,159.45,12.09662079]
[1748930637327,6.31280439,159.47,159.45,5.82852079]
[1748930637728,6.2677,159.46,159.45,5.82852079]
[1748930637938,6.2677,159.46,159.44,5.87046415]
[1748930638733,6.2681,159.45,159.44,5.87046415]
[1748930638932,0.04540439,159.47,159.44,5.87393571]
[1748930639142,0.04540439,159.47,159.45,5.83397101]
[1748930640135,6.2678,159.46,159.45,5.83397101]
[1748930640340,0.04540439,159.47,159.44,0.0399647]
[1748930640641,6.31290439,159.47,159.45,5.83617926]
[1748930643243,6.2677,159.46,159.45,5.83617926]
[1748930644543,6.2677,159.46,159.44,6.3082647]
[1748930645043,0.04540439,159.47,159.44,0.0399647]
[1748930645239,541.52,159.56,159.45,46.03309234]
[1748930645434,31.76,159.56,159.5,5.83680481]
[1748930645656,6.265,159.53,159.51,5.83680481]
[1748930646035,31.76,159.56,159.51,5.83680481]
[1748930646244,6.30918744,159.55,159.52,6.30765014]
[1748930646441,0.04478744,159.55,159.52,0.04235014]
[1748930646749,0.04478744,159.55,159.52,5.86992242]
[1748930646945,0.04478744,159.55,159.52,7.99922242]
[1748930647643,31.74,159.59,159.53,6.51074452]
[1748930648038,31.74,159.62,159.55,6.51074452]
[1748930648633,6.2629,159.59,159.57,0.04668137]
[1748930648846,0.04007171,159.6,159.57,0.04668137]
[1748930649546,6.263,159.58,159.57,0.04668137]
[1748930652547,6.263,159.58,159.57,0.01066136]
[1748930653845,38.003,159.58,159.57,0.01066136]
[1748930654041,44.51374452,159.58,159.57,0.01066136]
[1748930662653,6.2649,159.53,159.52,2.1293]
[1748930663851,0.04385025,159.54,159.51,0.04655853]
[1748930663852,6.2653,159.52,159.51,0.04655853]
[1748930666052,0.04385025,159.54,159.51,6.55730305]
[1748930666249,0.04385025,159.54,159.51,38.25730305]
[1748930666448,6.2636,159.57,159.52,2.1838]
[1748930667052,6.2629,159.59,159.55,6.2641]
[1748930667358,6.2629,159.59,159.53,6.51074452]
[1748930667548,0.04330724,159.58,159.54,0.04328586]
[1748930667751,541.58,159.64,159.55,38.21074452]
[1748930667957,579.79074452,159.64,159.55,38.21074452]
[1748930668558,6.51074452,159.66,159.57,6.51074452]
[1748930668762,0.04135612,159.63,159.6,0.04187575]
[1748930669558,6.2614,159.62,159.6,0.04187575]
[1748930669755,0.04135612,159.63,159.6,0.04187575]
[1748930670165,0.04135612,159.63,159.61,6.2615]
[1748930670359,0.04135612,159.63,159.6,0.04187575]
[1748930670762,0.04135612,159.63,159.61,6.2614]
[1748930671554,0.04135612,159.63,159.6,2.22247575]
[1748930671555,0.04135612,159.63,159.6,0.04187575]
[1748930672066,6.2617,159.62,159.6,0.04187575]
[1748930672762,6.2618,159.61,159.6,0.04187575]
[1748930676172,6.2634,159.57,159.54,40.40424452]
[1748930676766,6.2638,159.56,159.54,31.7]
[1748930677567,6.2642,159.55,159.54,31.7]
[1748930677773,6.2642,159.55,159.53,0.04213542]
[1748930677973,0.04245397,159.57,159.53,0.04213542]
[1748930678174,0.04245397,159.57,159.53,6.30703542]
[1748930679177,6.2638,159.56,159.53,6.30703542]
[1748930680272,6.30595397,159.57,159.53,6.30703542]
[1748930682279,6.30595397,159.57,159.54,6.2645]
[1748930688480,6.2638,159.56,159.53,6.30693542]
[1748930689182,6.2638,159.56,159.53,12.10147606]
[1748930689377,6.2638,159.56,159.54,6.2645]
[1748930689577,6.30595397,159.57,159.53,5.83667606]
[1748930689777,0.04245397,159.57,159.53,5.83667606]
[1748930689984,0.04245397,159.57,159.55,6.264]
[1748930690972,0.04245397,159.57,159.56,6.2638]
[1748930692185,0.04245397,159.57,159.56,12.05834064]
[1748930692380,35.7656,159.64,159.56,5.79454064]
[1748930692589,35.7656,159.64,159.57,6.51074452]
[1748930693388,6.30380692,159.62,159.59,0.04690544]
[1748930693589,0.04240692,159.62,159.59,0.04690544]
[1748930693990,6.262,159.61,159.59,0.04690544]
[1748930695282,0.04240692,159.62,159.59,0.04690544]
[1748930695283,6.2622,159.6,159.59,0.04690544]
[1748930697587,6.2618,159.61,159.59,0.04690544]
[1748930697987,0.04240692,159.62,159.59,6.55764996]
[1748930698294,0.04240692,159.62,159.61,6.51074452]
[1748930698696,0.04240692,159.62,159.61,12.77254452]
[1748930699399,0.04240692,159.62,159.59,38.23764996]
[1748930700990,0.04240692,159.62,159.59,44.50004996]
[1748930701193,0.04240692,159.62,159.59,38.23764996]
[1748930702399,0.04240692,159.62,159.59,44.49994996]
[1748930702600,0.04240692,159.62,159.59,38.23764996]
[1748930703099,0.04240692,159.62,159.59,31.72690544]
[1748930703296,6.30380692,159.62,159.6,6.51074452]
[1748930703798,0.04240692,159.62,159.6,12.77284452]
[1748930704602,0.04240692,159.62,159.61,6.2618]
[1748930705197,0.04240692,159.62,159.6,16.88954452]
[1748930705901,6.30390692,159.62,159.6,6.51074452]
[1748930706293,0.04240692,159.62,159.6,6.51074452]
[1748930706709,0.04240692,159.62,159.59,31.72690544]
[1748930706908,0.04240692,159.62,159.59,0.04690544]
[1748930707611,6.2618,159.61,159.59,0.04690544]
[1748930708915,6.2622,159.6,159.59,0.04690544]
[1748930713309,0.04240692,159.62,159.59,0.04690544]
[1748930714405,0.04240692,159.62,159.6,6.262]
[1748930715014,0.04240692,159.62,159.59,6.30930544]
[1748930715613,6.30390692,159.62,159.59,6.30930544]
[1748930716015,31.68,159.67,159.59,6.30930544]
[1748930716016,31.68,159.7,159.61,6.51074452]
[1748930716216,38.19074452,159.7,159.61,6.51074452]
[1748930716614,6.2601,159.66,159.61,6.51074452]
[1748930716807,38.19074452,159.7,159.61,6.51074452]
[1748930717008,38.19074452,159.7,159.63,0.04407401]
[1748930717009,0.04577286,159.67,159.63,0.04407401]
[1748930718418,6.2606,159.64,159.63,0.04407401]
[1748930746448,6.51074452,159.64,159.57,31.64]
[1748930747148,6.2623,159.6,159.57,35.80053423]
[1748930747349,6.30208219,159.6,159.57,35.84883886]
[1748930748148,6.30208219,159.6,159.57,42.11213886]
[1748930748648,0.03978219,159.6,159.57,35.84883886]
[1748930748848,4.16053423,159.59,159.57,31.68830463]
[1748930749249,6.263,159.58,159.57,31.68830463]
[1748930749749,6.263,159.58,159.57,0.04830463]
[1748930751051,6.2628,159.59,159.57,0.04830463]
[1748930751650,6.263,159.58,159.57,0.04830463]
[1748930769152,10.42494408,159.58,159.57,0.04830463]
[1748930774563,0.03978219,159.6,159.57,4.21024871]
[1748930774864,0.03978219,159.6,159.58,4.16194408]
[1748930775061,0.03978219,159.6,159.58,10.42454408]
[1748930775273,0.03978219,159.6,159.58,4.16194408]
[1748930775559,0.03978219,159.6,159.59,6.2626]
[1748930777665,0.03978219,159.6,159.58,12.06204409]
[1748930780362,0.03978219,159.6,159.58,5.79934409]
[1748930780671,0.03978219,159.6,159.57,5.84764872]
[1748930781368,6.2629,159.59,159.57,5.84764872]
[1748930781957,6.263,159.58,159.57,5.84764872]
[1748930782161,6.263,159.58,159.57,0.04830463]
[1748930782357,0.03978219,159.6,159.57,5.85296663]
[1748930782766,6.53906121,159.6,159.57,0.04830463]
[1748930783271,6.263,159.58,159.57,0.04830463]
[1748930788467,6.2628,159.59,159.57,5.85403008]
[1748930790178,6.2628,159.59,159.57,5.85197716]
[1748930790477,0.03978219,159.6,159.57,5.85197716]
[1748930790666,0.03978219,159.6,159.59,12.06627253]
[1748930790872,0.03978219,159.6,159.59,6.2626]
[1748930791177,0.03978219,159.6,159.59,12.06627253]
[1748930791877,0.03978219,159.6,159.59,6.2626]
[1748930792879,0.03978219,159.6,159.58,13.98635564]
[1748930794480,6.30208219,159.6,159.57,52.11433929]
[1748930794675,0.03978219,159.6,159.58,5.79686367]
[1748930795273,6.2626,159.59,159.58,5.79686367]
[1748930797382,6.30208219,159.6,159.58,5.79686367]
[1748930800885,0.03978219,159.6,159.58,12.05966367]
[1748930801584,0.03978219,159.6,159.58,6.2628]
[1748930801775,0.03978219,159.6,159.58,12.06097606]
[1748930804682,0.03978219,159.6,159.59,6.2626]
[1748930805492,0.03978219,159.6,159.58,6.2628]
[1748930805788,0.03978219,159.6,159.59,5.79759536]
[1748930806487,0.03978219,159.6,159.58,12.06039536]
[1748930807687,0.03978219,159.6,159.59,5.79759536]
[1748930809492,0.03978219,159.6,159.59,5.80154521]
[1748930810191,6.30198219,159.6,159.59,5.80154521]
[1748930813292,6.30198219,159.6,159.57,14.03516027]
[1748930813484,6.30198219,159.6,159.59,5.80336868]
[1748930815500,10.46205547,159.6,159.59,5.80336868]
[1748930815690,6.2626,159.59,159.58,5.80336868]
[1748930816489,6.2626,159.59,159.57,0.04830463]
[1748930817297,6.2626,159.59,159.57,7.77186027]
[1748930821402,6.2629,159.58,159.57,7.77186027]
[1748930821700,4.16007328,159.59,159.57,0.04830463]
[1748930822004,10.42297328,159.59,159.57,0.04830463]
[1748930822302,10.42297328,159.59,159.58,5.80673096]
[1748930823011,10.42297328,159.59,159.57,7.77186027]
[1748930823395,10.42297328,159.59,159.57,0.04830463]
[1748930824310,10.42297328,159.58,159.57,0.04830463]
[1748930824606,10.42297328,159.58,159.57,5.85798615]
[1748930827710,10.42297328,159.58,159.57,5.85856029]
[1748930835513,10.42297328,159.58,159.57,5.86098194]
[1748930839408,10.42297328,159.58,159.57,0.04830463]
[1748930839713,10.42297328,159.58,159.57,5.85872532]
[1748930842215,10.42297328,159.58,159.57,0.04830463]
[1748930848719,10.42297328,159.58,159.54,11.59897945]
[1748930848720,6.2641,159.55,159.54,11.59897945]
[1748930848921,10.42417328,159.55,159.54,5.79239587]
[1748930850619,6.2645,159.54,159.53,0.0450934]
[1748930850925,10.42457328,159.54,159.53,0.0450934]
[1748930851118,6.2665,159.49,159.48,7.72355564]
[1748930851319,4.16007328,159.49,159.47,107.34835329]
[1748930851517,4.16007328,159.48,159.47,107.34835329]
[1748930851721,4.16007328,159.48,159.46,13.99115564]
[1748930852123,4.20637155,159.49,159.46,13.99115564]
[1748930852324,4.20637155,159.49,159.46,14.03389299]
[1748930853323,4.20637155,159.49,159.46,6.31033735]
[1748930853533,4.20637155,159.49,159.47,6.2672]
[1748930857335,10.47287155,159.49,159.46,6.31023735]
[1748930860233,0.04629827,159.49,159.46,4.20281063]
[1748930860435,0.04629827,159.49,159.48,4.16007328]
[1748930860728,121.46,159.6,159.48,4.16007328]
[1748930860729,7.78668672,159.66,159.48,4.16007328]
[1748930860936,4.16007328,159.57,159.53,4.16007328]
[1748930861232,31.52,159.66,159.58,6.2629]
[1748930861435,4.16007328,159.61,159.58,6.2629]
[1748930861637,4.16007328,159.59,159.5,7.72355564]
[1748930861833,4.20120367,159.56,159.53,0.04615295]
[1748930862138,0.04113039,159.56,159.53,0.04615295]
[1748930863039,0.04113039,159.56,159.53,6.31085295]
[1748930863436,0.04113039,159.56,159.53,0.04615295]
[1748930863636,0.04113039,159.56,159.54,6.2643]
[1748930865337,0.04113039,159.56,159.53,6.31085295]
[1748930865939,0.04113039,159.56,159.54,6.2644]
[1748930866435,0.04113039,159.56,159.53,0.04615295]
[1748930866637,0.04113039,159.56,159.53,6.31085295]
[1748930867246,6.30483039,159.56,159.53,6.31085295]
[1748930868046,0.04113039,159.56,159.54,6.2644]
[1748930868841,0.04113039,159.56,159.55,6.2641]
[1748930869735,0.04113039,159.56,159.54,6.2644]
[1748930870136,0.04113039,159.56,159.53,31.54615295]
[1748930871438,0.04113039,159.56,159.55,6.2641]
[1748930873142,31.5,159.62,159.57,6.2632]
[1748930873542,6.2621,159.61,159.57,6.2632]
[1748930874250,6.30732766,159.61,159.57,6.3103614]
[1748930874947,6.30732766,159.61,159.58,6.2629]
[1748930875443,6.30732766,159.61,159.57,0.0471614]
[1748930875444,0.04522766,159.61,159.57,0.0471614]
[1748930876239,0.04522766,159.61,159.58,6.2627]
[1748930879348,0.04522766,159.61,159.57,0.0471614]
[1748930879549,0.04522766,159.61,159.57,38.00988557]
[1748930879949,0.04522766,159.61,159.59,6.2623]
[1748930880653,0.04522766,159.61,159.6,6.2622]
[1748930882046,0.04522766,159.61,159.59,6.2625]
[1748930883063,0.04522766,159.61,159.58,6.2626]
[1748930883357,0.04522766,159.61,159.57,38.00988557]
[1748930883748,6.30722766,159.61,159.57,44.27288557]
[1748930884650,6.30722766,159.61,159.57,37.7701614]
[1748930884850,6.2623,159.6,159.57,31.5071614]
[1748930886056,6.2623,159.6,159.57,37.7704614]
[1748930887660,6.30712766,159.61,159.57,37.7704614]
[1748930887857,6.30712766,159.61,159.58,6.2629]
[1748930889550,0.04522766,159.61,159.57,31.5071614]
[1748930890259,6.2624,159.6,159.57,31.5071614]
[1748930890655,0.04522766,159.61,159.57,31.5071614]
[1748930890656,6.2626,159.59,159.57,31.5071614]
[1748930891261,6.2624,159.6,159.57,37.7704614]
[1748930891858,6.2624,159.6,159.57,31.5071614]
[1748930892251,0.04522766,159.61,159.57,31.5071614]
[1748930892857,6.2625,159.6,159.57,31.5071614]
[1748930893362,6.2625,159.6,159.57,35.66765976]
[1748930893558,6.2625,159.6,159.57,41.93085976]
[1748930894857,6.2625,159.6,159.57,35.66765976]
[1748930895264,6.2627,159.59,159.57,35.66765976]
[1748930897162,6.2627,159.59,159.57,31.5071614]
[1748930897562,6.2627,159.59,159.57,37.7704614]
[1748930898657,6.2627,159.59,159.57,31.5071614]
[1748930898963,6.2627,159.59,159.57,0.0471614]
[1748930899167,4.16049836,159.6,159.57,0.0471614]
[1748930899462,4.16049836,159.6,159.57,4.20765976]
[1748930900058,4.16049836,159.6,159.57,0.0471614]
[1748930900360,6.2629,159.58,159.57,0.0471614]
[1748930901061,6.2627,159.59,159.57,0.0471614]
[1748930901566,6.2629,159.58,159.57,0.0471614]
[1748930903562,10.42339836,159.58,159.57,0.0471614]
[1748930904970,6.2644,159.55,159.52,39.18355564]
[1748930905162,4.16049836,159.55,159.52,31.46]
[1748930905464,4.16049836,159.55,159.52,39.18355564]
[1748930905664,10.42539836,159.53,159.52,31.46]
[1748930905961,4.16049836,159.53,159.52,31.46]
[1748930906158,4.20160894,159.54,159.52,31.46]
[1748930906369,10.46630894,159.54,159.52,31.46]
[1748930907159,6.30581058,159.54,159.52,31.46]
[1748930908466,0.04111058,159.54,159.52,37.7251]
[1748930909070,0.04111058,159.54,159.52,45.44865564]
[1748930909266,0.04111058,159.54,159.52,39.18355564]
[1748930909267,6.30561058,159.54,159.52,39.18355564]
[1748930909670,6.30561058,159.54,159.52,31.46]
[1748930910671,6.30561058,159.54,159.53,5.79453644]
[1748930914180,6.30561058,159.54,159.52,37.25453644]
[1748930914378,0.04111058,159.54,159.52,37.25453644]
[1748930915688,0.04111058,159.54,159.52,31.46]
[1748930915984,0.04111058,159.54,159.52,37.2522102]
[1748930916174,0.04111058,159.54,159.53,5.7922102]
[1748930916483,0.04111058,159.54,159.52,37.2522102]
[1748930916686,0.04111058,159.54,159.52,43.5173102]
[1748930916975,0.04111058,159.54,159.53,5.7922102]
[1748930919581,0.04111058,159.54,159.52,37.7251]
[1748930919776,0.04111058,159.54,159.53,5.78830181]
[1748930922188,0.04111058,159.54,159.52,43.51340181]
[1748930922390,0.04111058,159.54,159.53,5.78830181]
[1748930923393,0.04111058,159.54,159.52,43.51340181]
[1748930923690,0.04111058,159.54,159.52,43.51284416]
[1748930924293,0.04111058,159.54,159.53,5.78774416]
[1748930925091,0.04111058,159.54,159.52,43.51284416]
[1748930926392,6.2649,159.53,159.52,5.78774416]
[1748930926598,6.5471617,159.54,159.51,0.04295249]
[1748930927394,10.4304377,159.52,159.51,0.04295249]
[1748930929189,6.2653,159.52,159.51,0.04295249]
[1748930941097,6.54943956,159.54,159.51,0.04295249]
[1748930941293,6.54943956,159.54,159.51,5.83058521]
[1748930941696,6.2653,159.53,159.51,5.83239721]
[1748930944693,31.42,159.64,159.51,14.26814657]
[1748930944892,31.42,159.64,159.56,12.29947742]
[1748930945096,6.2613,159.63,159.59,6.2625]
[1748930945798,6.30389837,159.63,159.6,6.2621]
[1748930946894,6.30389837,159.63,159.59,12.08910035]
[1748930948095,0.04259837,159.63,159.59,5.82670035]
[1748930948997,0.04259837,159.63,159.61,6.2615]
[1748930949799,0.04259837,159.63,159.61,5.78680356]
[1748930950499,0.04259837,159.63,159.6,12.04890356]
[1748930951400,6.30369837,159.63,159.6,5.78680356]
[1748930952003,6.2618,159.61,159.59,37.22670035]
[1748930952207,0.04259837,159.63,159.59,31.43989679]
[1748930952702,6.2618,159.61,159.59,31.43989679]
[1748930954310,0.04259837,159.63,159.59,31.43989679]
[1748930954311,6.2621,159.6,159.59,31.43989679]
[1748930956611,6.2621,159.6,159.59,0.03989679]
[1748930959402,6.55092735,159.63,159.59,0.03989679]
[1748930959403,6.2619,159.61,159.59,0.03989679]
[1748930959602,0.04259837,159.63,159.59,0.03989679]
[1748930961106,6.2615,159.62,159.59,6.30229679]
[1748930961910,6.30359837,159.63,159.59,6.30229679]
[1748930962114,6.30359837,159.63,159.6,6.2621]
[1748930962607,6.30359837,159.63,159.59,0.03989679]
[1748930962608,0.04259837,159.63,159.61,6.2616]
[1748930962909,6.50832898,159.69,159.61,6.50832898]
[1748930963104,6.2596,159.67,159.61,6.50832898]
[1748930963300,6.2596,159.67,159.63,6.2607]
[1748930964011,6.30481747,159.67,159.63,6.55577075]
[1748930964206,6.2599,159.66,159.63,6.55577075]
[1748930964410,6.55354645,159.67,159.63,0.04744177]
[1748930964614,6.2606,159.64,159.63,0.04744177]
[1748930965212,6.2603,159.65,159.63,0.04744177]
[1748930965708,6.2606,159.64,159.63,0.04744177]
[1748930966712,6.2606,159.64,159.58,5.76412154]
[1748930966713,6.50832898,159.65,159.57,37.16412154]
[1748930966917,6.50832898,159.61,159.57,31.4]
[1748930967205,6.2621,159.61,159.57,37.16412154]
[1748930967410,6.2621,159.61,159.57,37.6633]
[1748930967814,6.3078732,159.61,159.57,37.70766704]
[1748930969618,6.2628,159.59,159.57,31.44436704]
[1748930971010,6.2629,159.58,159.57,31.44436704]
[1748930971206,6.2629,159.58,159.57,0.04436704]
[1748930975819,6.2629,159.58,159.57,0.00770629]
[1748930976417,6.265,159.53,159.51,37.14806331]
[1748930976614,6.50832898,159.55,159.51,31.38]
[1748930977020,6.50832898,159.55,159.51,37.6456]
[1748930977521,12.81421226,159.55,159.51,37.68730063]
[1748930978323,12.81421226,159.55,159.52,6.2653]
[1748930979321,6.30588328,159.55,159.52,6.2653]
[1748930982030,6.30588328,159.55,159.51,43.45950469]
[1748930984135,6.30588328,159.55,159.51,43.46340396]
[1748930987338,6.30588328,159.55,159.52,6.2652]
[1748930987537,0.04158328,159.55,159.51,37.19790396]
[1748930987731,0.04158328,159.55,159.52,6.265]
[1748930989340,6.30568328,159.55,159.52,6.265]
[1748930990943,0.04158328,159.55,159.52,6.265]
[1748930992439,6.30578328,159.55,159.52,6.265]
[1748930999453,0.04158328,159.55,159.52,6.2652]
[1748930999855,0.04158328,159.55,159.52,5.77950317]
[1748931000054,0.04158328,159.55,159.51,31.42170063]
[1748931000251,0.04158328,159.55,159.52,5.77907604]
[1748931000661,0.04158328,159.55,159.53,6.2646]
[1748931001160,0.04158328,159.55,159.52,5.77907604]
[1748931002460,0.04158328,159.55,159.52,5.77874313]
[1748931003660,6.30588328,159.55,159.52,12.04374313]
[1748931004057,0.04158328,159.55,159.52,5.77874313]
[1748931004265,0.04158328,159.55,159.53,5.77874313]
[1748931006068,0.04158328,159.55,159.53,12.04334313]
[1748931006266,6.30578328,159.55,159.53,5.77855361]
[1748931006459,6.30578328,159.55,159.52,5.77855361]
[1748931008067,6.30578328,159.55,159.52,12.04375361]
[1748931009358,6.30578328,159.55,159.53,5.77855361]
[1748931009966,6.2645,159.54,159.53,5.77855361]
[1748931010163,6.2645,159.54,159.52,5.78595653]
[1748931010562,0.04158328,159.55,159.52,5.78595653]
[1748931011361,0.04158328,159.55,159.53,5.78595653]
[1748931011362,6.2645,159.54,159.53,5.78595653]
[1748931012568,6.2645,159.54,159.53,5.79557691]
[1748931012864,6.30588328,159.55,159.53,5.79557691]
[1748931013168,10.46938251,159.55,159.54,5.79544459]
[1748931013973,10.46938251,159.55,159.54,5.79779849]
[1748931014765,10.46938251,159.55,159.52,13.97073472]
[1748931015369,10.46938251,159.55,159.53,7.70543472]
[1748931017767,10.46938251,159.55,159.53,7.70543467]
[1748931018273,0.04158328,159.55,159.53,7.70543467]
[1748931019065,0.04158328,159.55,159.54,6.2645]
[1748931024477,0.04158328,159.55,159.54,10.42799923]
[1748931025065,31.38,159.6,159.58,6.2629]
[1748931025066,4.16349923,159.6,159.58,6.2629]
[1748931025279,4.16349923,159.62,159.58,4.16349923]
[1748931025472,33.4426,159.63,159.58,4.16349923]
[1748931025473,77.7878389,159.64,159.59,5.80860877]
[1748931025678,4.16349923,159.63,159.59,5.80586299]
[1748931025979,4.16349923,159.62,159.59,5.80586299]
[1748931026169,4.20362804,159.62,159.59,5.85375554]
[1748931026369,4.16349923,159.61,159.59,5.85375554]
[1748931026570,0.04012881,159.62,159.59,5.85375554]
[1748931026571,4.16349923,159.6,159.59,5.85375554]
[1748931026770,10.42559923,159.6,159.59,5.85375554]
[1748931027172,6.2621,159.6,159.59,5.85375554]
[1748931028678,6.2621,159.6,159.59,0.04789255]
[1748931031777,6.2621,159.6,159.59,5.84538707]
[1748931031979,6.5421232,159.62,159.59,5.84538707]
[1748931032683,6.2621,159.6,159.59,5.84538707]
[1748931033176,6.2621,159.6,159.59,0.04789255]
[1748931033383,6.2621,159.6,159.59,5.8415959]
[1748931034181,6.2621,159.6,159.59,0.04789255]
[1748931036378,12.76409439,159.6,159.59,0.00630927]
[1748931037173,6.50199439,159.6,159.55,5.79474597]
[1748931037380,6.50199439,159.58,159.54,5.79474597]
[1748931038378,6.54521975,159.58,159.54,5.83523578]
[1748931038988,6.2641,159.55,159.54,5.83523578]
[1748931041084,6.2641,159.55,159.54,5.83741841]
[1748931041488,6.2641,159.55,159.54,0.04048981]
[1748931046486,12.76609439,159.55,159.54,0.04048981]
[1748931050982,6.50199439,159.55,159.49,5.79790657]
[1748931051183,6.50199439,159.5,159.47,5.79790657]
[1748931051380,6.50199439,159.5,159.46,5.79790657]
[1748931052193,6.50199439,159.49,159.46,5.83959695]
[1748931052395,6.50199439,159.49,159.46,0.04169038]
[1748931052689,6.2672,159.48,159.46,0.04169038]
[1748931053487,12.76919439,159.47,159.46,0.04169038]
[1748931054499,6.2672,159.47,159.46,0.04169038]
[1748931075318,10.43477944,159.47,159.46,0.04169038]
[1748931083418,6.2672,159.47,159.46,0.04169038]
[1748931083618,4.2117097,159.5,159.46,4.20926982]
[1748931083822,4.2117097,159.5,159.47,4.16757944]
[1748931084016,6.2664,159.49,159.47,4.16757944]
[1748931084232,4.2117097,159.5,159.47,4.16757944]
[1748931084419,0.04413026,159.5,159.47,4.16757944]
[1748931084622,0.04413026,159.5,159.48,4.16757944]
[1748931085016,31.32,159.54,159.47,31.32]
[1748931085017,4.16757944,159.53,159.49,4.16757944]
[1748931085322,6.2648,159.53,159.49,6.2662]
[1748931085522,6.50565395,159.56,159.47,45.73621224]
[1748931085718,6.2645,159.54,159.5,6.2656]
[1748931086116,6.31241692,159.54,159.5,6.30789423]
[1748931086726,6.2647,159.53,159.5,6.30789423]
[1748931086923,0.04791692,159.54,159.5,0.04229423]
[1748931087627,6.2647,159.53,159.5,0.04229423]
[1748931090530,6.2651,159.52,159.5,0.04229423]
[1748931090720,0.04791692,159.54,159.5,0.04229423]
[1748931091830,6.2647,159.53,159.5,0.04229423]
[1748931092229,6.2654,159.52,159.5,0.04229423]
[1748931092424,6.55357087,159.54,159.5,0.04229423]
[1748931092830,6.2654,159.51,159.5,0.04229423]
[1748931096024,6.2654,159.51,159.5,5.8381987]
[1748931096937,6.2654,159.51,159.5,0.04229423]
[1748931097343,0.04791692,159.54,159.5,0.04229423]
[1748931097531,0.04791692,159.54,159.5,5.83908477]
[1748931097734,6.2653,159.52,159.5,5.83908477]
[1748931097934,0.04791692,159.54,159.5,5.83908477]
[1748931098134,0.04791692,159.54,159.51,6.2653]
[1748931098334,6.31241692,159.54,159.51,6.2653]
[1748931099133,6.31241692,159.54,159.5,12.10478477]
[1748931099538,6.2647,159.53,159.5,5.83908477]
[1748931099730,0.04791692,159.54,159.5,5.83908477]
[1748931099934,6.50565395,159.53,159.5,0.04229423]
[1748931100137,6.2654,159.51,159.5,0.04229423]
[1748931100340,6.2654,159.51,159.5,5.83908477]
[1748931100540,6.2654,159.51,159.5,0.04229423]
[1748931107447,6.2652,159.52,159.5,0.04229423]
[1748931107646,0.04791692,159.54,159.5,0.04229423]
[1748931108243,6.2649,159.53,159.5,6.30779423]
[1748931108637,6.2649,159.53,159.5,12.09773662]
[1748931108947,6.2649,159.53,159.5,12.09608456]